[Event "Titled Tuesday Blitz November 15 Early 2022"]
[White "Mendonca, Mateus Nakajo"]
[Black "Salman, Pavel"]
[WhiteFideId "2110954"]
[BlackFideId "24153753"]
[WhiteElo "2310"]
[BlackElo "2187"]
[Result "1-0"]
[Round "11"]
[TimeControl "180+1"]
[Date "2022.11.16"]
[WhiteClock "0:00:17"]
[BlackClock "0:00:04"]

1. d4 {[%clk 0:03:00]}  Nf6 {[%clk 0:02:58]} 2. Nf3 {[%clk 0:03:00]}  g6 {[%clk 0:02:54]} 3. g3 {[%clk 0:03:01]}  Bg7 {[%clk 0:02:54]} 4. Bg2 {[%clk 0:03:02]}  O-O {[%clk 0:02:54]} 5. O-O {[%clk 0:03:02]}  c5 {[%clk 0:02:55]} 6. c3 {[%clk 0:03:01]}  d5 {[%clk 0:02:54]} 7. dxc5 {[%clk 0:03:00]}  Nbd7 {[%clk 0:02:49]} 8. b4 {[%clk 0:02:54]}  a5 {[%clk 0:02:49]} 9. Bb2 {[%clk 0:02:48]}  e6 {[%clk 0:02:43]} 10. a3 {[%clk 0:02:45]}  Ne4 {[%clk 0:02:41]} 11. Qb3 {[%clk 0:02:38]}  Nb8 {[%clk 0:02:00]} 12. Nbd2 {[%clk 0:02:25]}  f5 {[%clk 0:01:55]} 13. c4 {[%clk 0:02:08]}  d4 {[%clk 0:01:42]} 14. Nxe4 {[%clk 0:01:42]}  fxe4 {[%clk 0:01:42]} 15. Nd2 {[%clk 0:01:37]}  a4 {[%clk 0:01:26]} 16. Qc2 {[%clk 0:01:29]}  d3 {[%clk 0:01:26]} 17. exd3 {[%clk 0:01:21]}  exd3 {[%clk 0:01:27]} 18. Qb1 {[%clk 0:01:16]}  Nc6 {[%clk 0:01:14]} 19. Bxg7 {[%clk 0:01:14]}  Kxg7 {[%clk 0:01:15]} 20. Bxc6 {[%clk 0:01:13]}  bxc6 {[%clk 0:01:15]} 21. Qb2+ {[%clk 0:01:09]}  Qf6 {[%clk 0:01:03]} 22. Qxf6+ {[%clk 0:01:07]}  Kxf6 {[%clk 0:01:04]} 23. Rfe1 {[%clk 0:00:53]}  e5 {[%clk 0:00:57]} 24. Ne4+ {[%clk 0:00:50]}  Kg7 {[%clk 0:00:57]} 25. Rad1 {[%clk 0:00:48]}  Be6 {[%clk 0:00:41]} 26. Nd6 {[%clk 0:00:44]}  Rad8 {[%clk 0:00:18]} 27. Rxe5 {[%clk 0:00:41]}  Bf5 {[%clk 0:00:15]} 28. Re3 {[%clk 0:00:32]}  Kf6 {[%clk 0:00:04]} 29. Kg2 {[%clk 0:00:27]}  h5 {[%clk 0:00:02]} 30. h3 {[%clk 0:00:25]}  Rd7 {[%clk 0:00:02]} 31. Nxf5 {[%clk 0:00:21]}  gxf5 {[%clk 0:00:02]} 32. Rexd3 {[%clk 0:00:21]}  Re7 {[%clk 0:00:02]} 33. Rd6+ {[%clk 0:00:20]}  Kg7 {[%clk 0:00:02]} 34. Rd7 {[%clk 0:00:20]}  Kf7 {[%clk 0:00:02]} 35. Rxe7+ {[%clk 0:00:19]}  Kxe7 {[%clk 0:00:03]} 36. Rd6 {[%clk 0:00:19]}  Rc8 {[%clk 0:00:03]} 37. Kf3 {[%clk 0:00:19]}  Kf7 {[%clk 0:00:03]} 38. Kf4 {[%clk 0:00:20]}  Kg7 {[%clk 0:00:03]} 39. h4 {[%clk 0:00:20]}  Kh7 {[%clk 0:00:03]} 40. Kg5 {[%clk 0:00:20]}  Kg7 {[%clk 0:00:03]} 41. Rd7+ {[%clk 0:00:21]}  Kf8 {[%clk 0:00:02]} 42. Kxf5 {[%clk 0:00:21]}  Ke8 {[%clk 0:00:03]} 43. Rd6 {[%clk 0:00:22]}  Ke7 {[%clk 0:00:03]} 44. Kg5 {[%clk 0:00:22]}  Rf8 {[%clk 0:00:03]} 45. f4 {[%clk 0:00:22]}  Rg8+ {[%clk 0:00:03]} 46. Rg6 {[%clk 0:00:22]}  Rd8 {[%clk 0:00:04]} 47. Rxc6 {[%clk 0:00:21]}  Rd3 {[%clk 0:00:04]} 48. Ra6 {[%clk 0:00:21]}  Rxg3+ {[%clk 0:00:04]} 49. Kxh5 {[%clk 0:00:21]}  Rxa3 {[%clk 0:00:05]} 50. f5 {[%clk 0:00:21]}  Rf3 {[%clk 0:00:05]} 51. Rxa4 {[%clk 0:00:20]}  Rxf5+ {[%clk 0:00:05]} 52. Kg4 {[%clk 0:00:20]}  Rf1 {[%clk 0:00:05]} 53. Ra6 {[%clk 0:00:20]}  Rc1 {[%clk 0:00:06]} 54. Rb6 {[%clk 0:00:17]}  Rxc4+ {[%clk 0:00:06]} 55. Kg5 {[%clk 0:00:18]}  Rc1 {[%clk 0:00:06]} 56. h5 {[%clk 0:00:17]}  Rg1+ {[%clk 0:00:07]} 57. Kf5 {[%clk 0:00:17]}  Rf1+ {[%clk 0:00:07]} 58. Ke5 {[%clk 0:00:17]}  Kd7 {[%clk 0:00:07]} 59. h6 {[%clk 0:00:17]}  Rh1 {[%clk 0:00:07]} 60. Kd5 {[%clk 0:00:16]}  Kc7 {[%clk 0:00:08]} 61. Kc4 {[%clk 0:00:16]}  Rh4+ {[%clk 0:00:06]} 62. Kb5 {[%clk 0:00:17]}  Rh5 {[%clk 0:00:07]} 63. Rg6 {[%clk 0:00:17]}  Kb7 {[%clk 0:00:07]} 64. Rg7+ {[%clk 0:00:17]}  Kb8 {[%clk 0:00:07]} 65. h7 {[%clk 0:00:18]}  Ka8 {[%clk 0:00:06]} 66. Kb6 {[%clk 0:00:17]}  Rh6+ {[%clk 0:00:06]} 67. c6 {[%clk 0:00:18]}  Rg6 {[%clk 0:00:04]} 68. Rg8+ {[%clk 0:00:17]} 1-0


[Site "https://www.chess.com"]

[Event "Titled Tuesday Blitz November 15 Early 2022"]
[White "Mohamed Anees M"]
[Black "Zanette, Edgard Vinicius"]
[WhiteFideId "35065815"]
[BlackFideId "2109263"]
[WhiteElo "2135"]
[BlackElo "2211"]
[Result "1-0"]
[Round "11"]
[TimeControl "180+1"]
[Date "2022.11.16"]
[WhiteClock "0:00:08"]
[BlackClock "0:00:11"]

1. e4 {[%clk 0:03:00]}  c5 {[%clk 0:02:59]} 2. Nf3 {[%clk 0:03:01]}  d6 {[%clk 0:03:00]} 3. d4 {[%clk 0:03:01]}  cxd4 {[%clk 0:03:00]} 4. Nxd4 {[%clk 0:03:02]}  Nf6 {[%clk 0:03:01]} 5. Nc3 {[%clk 0:03:02]}  a6 {[%clk 0:03:01]} 6. Bg5 {[%clk 0:03:02]}  Nbd7 {[%clk 0:03:00]} 7. Qe2 {[%clk 0:03:02]}  e6 {[%clk 0:02:57]} 8. f4 {[%clk 0:03:01]}  Qc7 {[%clk 0:02:57]} 9. O-O-O {[%clk 0:03:00]}  h6 {[%clk 0:02:57]} 10. Bh4 {[%clk 0:02:57]}  b5 {[%clk 0:02:56]} 11. g4 {[%clk 0:02:52]}  Bb7 {[%clk 0:02:45]} 12. Bg2 {[%clk 0:02:52]}  Rc8 {[%clk 0:02:29]} 13. Kb1 {[%clk 0:02:45]}  Nc5 {[%clk 0:02:13]} 14. Bxf6 {[%clk 0:02:36]}  gxf6 {[%clk 0:02:13]} 15. f5 {[%clk 0:02:37]}  b4 {[%clk 0:02:10]} 16. Nd5 {[%clk 0:02:23]}  exd5 {[%clk 0:02:06]} 17. exd5+ {[%clk 0:02:24]}  Be7 {[%clk 0:02:04]} 18. Rhe1 {[%clk 0:02:23]}  Kf8 {[%clk 0:02:03]} 19. Nc6 {[%clk 0:02:09]}  Bxc6 {[%clk 0:02:00]} 20. dxc6 {[%clk 0:02:10]}  Re8 {[%clk 0:01:46]} 21. Bd5 {[%clk 0:02:08]}  Kg7 {[%clk 0:01:42]} 22. Qc4 {[%clk 0:02:08]}  Bd8 {[%clk 0:01:39]} 23. Qxb4 {[%clk 0:02:03]}  Re5 {[%clk 0:01:37]} 24. Rg1 {[%clk 0:01:35]}  Qa5 {[%clk 0:01:29]} 25. Qc4 {[%clk 0:01:27]}  Qc7 {[%clk 0:01:17]} 26. h4 {[%clk 0:01:18]}  Rhe8 {[%clk 0:01:17]} 27. a3 {[%clk 0:01:12]}  a5 {[%clk 0:01:00]} 28. Qf4 {[%clk 0:00:57]}  Qb6 {[%clk 0:00:48]} 29. g5 {[%clk 0:00:34]}  fxg5 {[%clk 0:00:44]} 30. hxg5 {[%clk 0:00:35]}  hxg5 {[%clk 0:00:44]} 31. Rxg5+ {[%clk 0:00:35]}  Bxg5 {[%clk 0:00:44]} 32. Qxg5+ {[%clk 0:00:36]}  Kf8 {[%clk 0:00:44]} 33. Qh6+ {[%clk 0:00:20]}  Ke7 {[%clk 0:00:42]} 34. Bxf7 {[%clk 0:00:11]}  Nd3 {[%clk 0:00:31]} 35. Rxd3 {[%clk 0:00:08]}  Re1+ {[%clk 0:00:27]} 36. Ka2 {[%clk 0:00:07]}  Rb8 {[%clk 0:00:24]} 37. Bb3 {[%clk 0:00:06]}  Qg1 {[%clk 0:00:20]} 38. Qxd6+ {[%clk 0:00:06]}  Ke8 {[%clk 0:00:11]} 39. Qd7+ {[%clk 0:00:07]}  Kf8 {[%clk 0:00:11]} 40. Qf7# {[%clk 0:00:08]} 1-0


[Site "https://www.chess.com"]

[Event "Titled Tuesday Blitz November 15 Early 2022"]
[White "Omariev, Maksim"]
[Black "Petrova, Irina"]
[WhiteFideId "4193423"]
[BlackFideId "14124122"]
[WhiteElo "2511"]
[BlackElo "2023"]
[Result "0-1"]
[Round "11"]
[TimeControl "180+1"]
[Date "2022.11.16"]
[WhiteClock "0:00:02"]
[BlackClock "0:00:23"]

1. g4 {[%clk 0:03:00]}  d6 {[%clk 0:03:00]} 2. Bg2 {[%clk 0:03:00]}  Nc6 {[%clk 0:02:55]} 3. g5 {[%clk 0:02:55]}  e5 {[%clk 0:02:54]} 4. h4 {[%clk 0:02:55]}  h6 {[%clk 0:02:54]} 5. d3 {[%clk 0:02:55]}  hxg5 {[%clk 0:02:53]} 6. hxg5 {[%clk 0:02:56]}  Rxh1 {[%clk 0:02:52]} 7. Bxh1 {[%clk 0:02:57]}  Be7 {[%clk 0:02:51]} 8. Nf3 {[%clk 0:02:56]}  Bg4 {[%clk 0:02:49]} 9. Qd2 {[%clk 0:02:54]}  Qd7 {[%clk 0:02:42]} 10. c4 {[%clk 0:02:51]}  O-O-O {[%clk 0:02:39]} 11. Nc3 {[%clk 0:02:52]}  f6 {[%clk 0:02:26]} 12. Nd5 {[%clk 0:02:37]}  fxg5 {[%clk 0:02:00]} 13. Nxg5 {[%clk 0:02:33]}  Bxg5 {[%clk 0:01:46]} 14. Qxg5 {[%clk 0:02:34]}  Nd4 {[%clk 0:01:47]} 15. f3 {[%clk 0:02:19]}  Be6 {[%clk 0:01:37]} 16. Ne3 {[%clk 0:02:12]}  Nf6 {[%clk 0:01:31]} 17. Bd2 {[%clk 0:02:08]}  Rh8 {[%clk 0:01:25]} 18. Bg2 {[%clk 0:01:54]}  Rh2 {[%clk 0:01:21]} 19. Qg3 {[%clk 0:01:50]}  Rh8 {[%clk 0:01:16]} 20. f4 {[%clk 0:01:30]}  Nh5 {[%clk 0:01:16]} 21. Qh4 {[%clk 0:01:19]}  Nxe2 {[%clk 0:01:13]} 22. f5 {[%clk 0:01:07]}  Bf7 {[%clk 0:01:09]} 23. Bf1 {[%clk 0:00:11]}  Nef4 {[%clk 0:01:08]} 24. O-O-O {[%clk 0:00:09]}  Re8 {[%clk 0:01:00]} 25. Qg5 {[%clk 0:00:07]}  Qa4 {[%clk 0:00:50]} 26. Kb1 {[%clk 0:00:06]}  d5 {[%clk 0:00:31]} 27. cxd5 {[%clk 0:00:04]}  Nxd5 {[%clk 0:00:31]} 28. Nc4 {[%clk 0:00:04]}  Qxd1+ {[%clk 0:00:30]} 29. Bc1 {[%clk 0:00:04]}  Qxf1 {[%clk 0:00:28]} 30. Qg4 {[%clk 0:00:04]}  Nhf6 {[%clk 0:00:26]} 31. Qg5 {[%clk 0:00:04]}  Qxd3+ {[%clk 0:00:25]} 32. Ka1 {[%clk 0:00:04]}  Qxc4 {[%clk 0:00:25]} 33. b3 {[%clk 0:00:03]}  Qxc1+ {[%clk 0:00:25]} 34. Qxc1 {[%clk 0:00:02]}  e4 {[%clk 0:00:25]} 35. Qb1 {[%clk 0:00:03]}  e3 {[%clk 0:00:23]} 36. Qe1 {[%clk 0:00:04]}  e2 {[%clk 0:00:23]} 37. Kb2 {[%clk 0:00:05]}  Nf4 {[%clk 0:00:21]} 38. Kc3 {[%clk 0:00:05]}  Ng2 {[%clk 0:00:21]} 39. Qh1 {[%clk 0:00:02]}  e1=Q+ {[%clk 0:00:22]} 40. Kd3 {[%clk 0:00:02]}  Qxh1 {[%clk 0:00:22]} 41. b4 {[%clk 0:00:03]}  Qd1+ {[%clk 0:00:21]} 42. Kc3 {[%clk 0:00:02]}  Re3+ {[%clk 0:00:21]} 43. Kb2 {[%clk 0:00:02]}  Qd2+ {[%clk 0:00:22]} 44. Kb1 {[%clk 0:00:02]}  Re1# {[%clk 0:00:23]} 0-1


[Site "https://www.chess.com"]

[Event "Titled Tuesday Blitz November 15 Early 2022"]
[White "Osinovsky, Stepan"]
[Black "Aponte Ramos, Argimiro"]
[WhiteFideId "4157354"]
[BlackFideId "3900568"]
[WhiteElo "2222"]
[BlackElo "2216"]
[Result "1-0"]
[Round "11"]
[TimeControl "180+1"]
[Date "2022.11.16"]
[WhiteClock "0:00:09"]
[BlackClock "0:00:39"]

1. Nf3 {[%clk 0:03:00]}  d5 {[%clk 0:02:59]} 2. g3 {[%clk 0:03:01]}  e6 {[%clk 0:02:59]} 3. Bg2 {[%clk 0:03:02]}  Nf6 {[%clk 0:02:59]} 4. O-O {[%clk 0:03:03]}  Be7 {[%clk 0:02:59]} 5. d3 {[%clk 0:03:04]}  O-O {[%clk 0:02:59]} 6. Nbd2 {[%clk 0:03:05]}  b6 {[%clk 0:02:59]} 7. e4 {[%clk 0:03:06]}  dxe4 {[%clk 0:02:59]} 8. dxe4 {[%clk 0:03:06]}  Bb7 {[%clk 0:02:59]} 9. Qe2 {[%clk 0:02:58]}  a5 {[%clk 0:02:59]} 10. Rd1 {[%clk 0:02:54]}  Na6 {[%clk 0:02:56]} 11. Nc4 {[%clk 0:02:52]}  Qc8 {[%clk 0:02:54]} 12. Nd4 {[%clk 0:02:48]}  Rd8 {[%clk 0:02:44]} 13. Bf4 {[%clk 0:02:37]}  Nc5 {[%clk 0:02:28]} 14. Nb5 {[%clk 0:02:22]}  Rxd1+ {[%clk 0:02:14]} 15. Rxd1 {[%clk 0:02:20]}  Na6 {[%clk 0:02:02]} 16. Bxc7 {[%clk 0:01:47]}  Nxc7 {[%clk 0:01:52]} 17. Nxb6 {[%clk 0:01:37]}  Qb8 {[%clk 0:01:52]} 18. Nxc7 {[%clk 0:01:32]}  Qxc7 {[%clk 0:01:51]} 19. Nxa8 {[%clk 0:01:32]}  Bxa8 {[%clk 0:01:52]} 20. e5 {[%clk 0:01:31]}  Nd5 {[%clk 0:01:49]} 21. c4 {[%clk 0:01:29]}  Nb6 {[%clk 0:01:45]} 22. c5 {[%clk 0:00:41]}  Nd5 {[%clk 0:01:43]} 23. Rc1 {[%clk 0:00:39]}  Bc6 {[%clk 0:01:40]} 24. b3 {[%clk 0:00:38]}  g6 {[%clk 0:01:36]} 25. a3 {[%clk 0:00:36]}  Qb8 {[%clk 0:01:24]} 26. Qa6 {[%clk 0:00:30]}  Bb7 {[%clk 0:01:10]} 27. Qb5 {[%clk 0:00:25]}  Qa8 {[%clk 0:01:02]} 28. c6 {[%clk 0:00:23]}  Bc8 {[%clk 0:00:58]} 29. c7 {[%clk 0:00:16]}  Bb7 {[%clk 0:00:42]} 30. Qxb7 {[%clk 0:00:14]}  Qxb7 {[%clk 0:00:42]} 31. c8=Q+ {[%clk 0:00:15]}  Qxc8 {[%clk 0:00:42]} 32. Rxc8+ {[%clk 0:00:15]}  Kg7 {[%clk 0:00:43]} 33. Bxd5 {[%clk 0:00:12]}  exd5 {[%clk 0:00:44]} 34. Ra8 {[%clk 0:00:09]}  Bxa3 {[%clk 0:00:43]} 35. Rxa5 {[%clk 0:00:09]}  Bb2 {[%clk 0:00:39]} 36. Rxd5 {[%clk 0:00:09]} 1-0


[Site "https://www.chess.com"]

[Event "Titled Tuesday Blitz November 15 Early 2022"]
[White "Quintiliano Pinto, Renato R."]
[Black "Donskov, Anatoly"]
[WhiteFideId "2117568"]
[BlackFideId "24143413"]
[WhiteElo "2472"]
[BlackElo "2219"]
[Result "1-0"]
[Round "11"]
[TimeControl "180+1"]
[Date "2022.11.16"]
[WhiteClock "0:02:36"]
[BlackClock "0:01:34"]

1. c4 {[%clk 0:02:59]}  e6 {[%clk 0:02:59]} 2. Nc3 {[%clk 0:02:59]}  d5 {[%clk 0:03:00]} 3. d4 {[%clk 0:03:00]}  c6 {[%clk 0:03:00]} 4. e3 {[%clk 0:02:59]}  Nf6 {[%clk 0:03:00]} 5. Nf3 {[%clk 0:02:57]}  Nbd7 {[%clk 0:03:00]} 6. Bd3 {[%clk 0:02:54]}  Bd6 {[%clk 0:02:57]} 7. O-O {[%clk 0:02:53]}  b6 {[%clk 0:02:57]} 8. e4 {[%clk 0:02:53]}  dxe4 {[%clk 0:02:53]} 9. Nxe4 {[%clk 0:02:54]}  Nxe4 {[%clk 0:02:53]} 10. Bxe4 {[%clk 0:02:55]}  Bb7 {[%clk 0:02:52]} 11. Re1 {[%clk 0:02:54]}  Qc7 {[%clk 0:02:49]} 12. h3 {[%clk 0:02:48]}  O-O-O {[%clk 0:02:34]} 13. Qa4 {[%clk 0:02:48]}  Kb8 {[%clk 0:02:16]} 14. b4 {[%clk 0:02:46]}  Nf6 {[%clk 0:02:06]} 15. c5 {[%clk 0:02:46]}  Nxe4 {[%clk 0:02:04]} 16. Rxe4 {[%clk 0:02:46]}  b5 {[%clk 0:01:34]} 17. Qc2 {[%clk 0:02:36]} 1-0


[Site "https://www.chess.com"]

[Event "Titled Tuesday Blitz November 15 Early 2022"]
[White "Ravot, Sylvain"]
[Black "Garv Gaur"]
[WhiteFideId "627763"]
[BlackFideId "45030839"]
[WhiteElo "2195"]
[BlackElo "1960"]
[Result "0-1"]
[Round "11"]
[TimeControl "180+1"]
[Date "2022.11.16"]
[WhiteClock "0:00:01"]
[BlackClock "0:00:59"]

1. e4 {[%clk 0:02:59]}  c6 {[%clk 0:02:59]} 2. d4 {[%clk 0:02:55]}  d5 {[%clk 0:03:00]} 3. exd5 {[%clk 0:02:56]}  cxd5 {[%clk 0:03:01]} 4. Bd3 {[%clk 0:02:56]}  Nc6 {[%clk 0:03:01]} 5. c3 {[%clk 0:02:57]}  Qc7 {[%clk 0:02:57]} 6. Ne2 {[%clk 0:02:57]}  Bg4 {[%clk 0:02:57]} 7. O-O {[%clk 0:02:57]}  e6 {[%clk 0:02:57]} 8. Qe1 {[%clk 0:02:57]}  Nf6 {[%clk 0:02:53]} 9. f3 {[%clk 0:02:55]}  Bh5 {[%clk 0:02:53]} 10. Qh4 {[%clk 0:02:52]}  Rg8 {[%clk 0:02:53]} 11. Nf4 {[%clk 0:02:30]}  Bg6 {[%clk 0:02:50]} 12. Nxg6 {[%clk 0:02:30]}  hxg6 {[%clk 0:02:51]} 13. Bf4 {[%clk 0:02:05]}  Bd6 {[%clk 0:02:49]} 14. Bxd6 {[%clk 0:02:04]}  Qxd6 {[%clk 0:02:50]} 15. Qg3 {[%clk 0:01:45]}  Qd7 {[%clk 0:02:44]} 16. Nd2 {[%clk 0:01:42]}  Rh8 {[%clk 0:02:41]} 17. Rfe1 {[%clk 0:01:36]}  O-O-O {[%clk 0:02:39]} 18. Nb3 {[%clk 0:01:31]}  Nh5 {[%clk 0:02:34]} 19. Qg5 {[%clk 0:01:06]}  Qc7 {[%clk 0:02:30]} 20. g3 {[%clk 0:01:00]}  Rh6 {[%clk 0:02:20]} 21. Re2 {[%clk 0:00:53]}  Rdh8 {[%clk 0:02:19]} 22. Rg2 {[%clk 0:00:54]}  Ne7 {[%clk 0:02:00]} 23. Qe5 {[%clk 0:00:31]}  Qc6 {[%clk 0:01:51]} 24. Nc5 {[%clk 0:00:20]}  Nf6 {[%clk 0:01:45]} 25. b4 {[%clk 0:00:18]}  Nd7 {[%clk 0:01:44]} 26. Qe3 {[%clk 0:00:18]}  Nxc5 {[%clk 0:01:42]} 27. bxc5 {[%clk 0:00:18]}  Nf5 {[%clk 0:01:40]} 28. Qf4 {[%clk 0:00:13]}  Qc7 {[%clk 0:01:29]} 29. Qxc7+ {[%clk 0:00:11]}  Kxc7 {[%clk 0:01:30]} 30. Rb1 {[%clk 0:00:12]}  g5 {[%clk 0:01:24]} 31. Rgb2 {[%clk 0:00:10]}  Rb8 {[%clk 0:01:20]} 32. Ba6 {[%clk 0:00:07]}  b6 {[%clk 0:01:19]} 33. a4 {[%clk 0:00:07]}  e5 {[%clk 0:01:05]} 34. dxe5 {[%clk 0:00:06]}  Re8 {[%clk 0:01:04]} 35. cxb6+ {[%clk 0:00:06]}  Rxb6 {[%clk 0:01:03]} 36. a5 {[%clk 0:00:05]}  Rxb2 {[%clk 0:01:02]} 37. Rxb2 {[%clk 0:00:05]}  Rxe5 {[%clk 0:01:03]} 38. Rb7+ {[%clk 0:00:05]}  Kc6 {[%clk 0:01:04]} 39. Rxf7 {[%clk 0:00:04]}  Nd6 {[%clk 0:01:04]} 40. Rxa7 {[%clk 0:00:03]}  Re1+ {[%clk 0:01:03]} 41. Kf2 {[%clk 0:00:03]}  Rc1 {[%clk 0:01:03]} 42. Rxg7 {[%clk 0:00:03]}  Rxc3 {[%clk 0:01:03]} 43. h4 {[%clk 0:00:02]}  gxh4 {[%clk 0:01:03]} 44. gxh4 {[%clk 0:00:03]}  Rc2+ {[%clk 0:01:03]} 45. Kg1 {[%clk 0:00:03]}  Nf5 {[%clk 0:01:02]} 46. Rg6+ {[%clk 0:00:03]}  Kc5 {[%clk 0:01:02]} 47. h5 {[%clk 0:00:03]}  Rc1+ {[%clk 0:01:01]} 48. Kf2 {[%clk 0:00:03]}  Rc2+ {[%clk 0:01:01]} 49. Ke1 {[%clk 0:00:02]}  Nd4 {[%clk 0:01:00]} 50. Kd1 {[%clk 0:00:02]}  Rh2 {[%clk 0:00:59]} 51. Rg5 {[%clk 0:00:01]}  Nxf3 {[%clk 0:00:59]} 0-1


[Site "https://www.chess.com"]

[Event "Titled Tuesday Blitz November 15 Early 2022"]
[White "Ricaurte Lopez, Juan Carlos"]
[Black "Winkels, Marcel"]
[WhiteFideId "3600327"]
[BlackFideId "1003887"]
[WhiteElo "2209"]
[BlackElo "1900"]
[Result "0-1"]
[Round "11"]
[TimeControl "180+1"]
[Date "2022.11.16"]
[WhiteClock "0:00:01"]
[BlackClock "0:01:13"]

1. e4 {[%clk 0:03:00]}  c5 {[%clk 0:02:58]} 2. Nf3 {[%clk 0:02:58]}  d6 {[%clk 0:02:58]} 3. d4 {[%clk 0:02:56]}  cxd4 {[%clk 0:02:59]} 4. Nxd4 {[%clk 0:02:55]}  Nf6 {[%clk 0:02:59]} 5. Nc3 {[%clk 0:02:55]}  a6 {[%clk 0:02:59]} 6. f4 {[%clk 0:02:54]}  e5 {[%clk 0:02:57]} 7. Nf3 {[%clk 0:02:51]}  Nbd7 {[%clk 0:02:58]} 8. Bc4 {[%clk 0:02:49]}  Be7 {[%clk 0:02:57]} 9. O-O {[%clk 0:02:36]}  O-O {[%clk 0:02:56]} 10. f5 {[%clk 0:02:35]}  b5 {[%clk 0:02:55]} 11. Bb3 {[%clk 0:02:34]}  Bb7 {[%clk 0:02:53]} 12. Nd5 {[%clk 0:02:13]}  Nxd5 {[%clk 0:02:45]} 13. Bxd5 {[%clk 0:02:11]}  Bxd5 {[%clk 0:02:45]} 14. Qxd5 {[%clk 0:02:09]}  Rc8 {[%clk 0:02:46]} 15. c3 {[%clk 0:02:04]}  Nf6 {[%clk 0:02:43]} 16. Qd3 {[%clk 0:02:01]}  Rc4 {[%clk 0:02:38]} 17. Bg5 {[%clk 0:01:49]}  d5 {[%clk 0:02:20]} 18. Bxf6 {[%clk 0:01:24]}  Bxf6 {[%clk 0:02:12]} 19. Qxd5 {[%clk 0:01:12]}  Qb6+ {[%clk 0:02:09]} 20. Rf2 {[%clk 0:00:10]}  Rd8 {[%clk 0:02:05]} 21. Nxe5 {[%clk 0:00:09]}  Rxd5 {[%clk 0:02:00]} 22. Nxc4 {[%clk 0:00:08]}  bxc4 {[%clk 0:01:35]} 23. exd5 {[%clk 0:00:06]}  Be7 {[%clk 0:01:35]} 24. Kf1 {[%clk 0:00:03]}  Bc5 {[%clk 0:01:34]} 25. Re2 {[%clk 0:00:02]}  h5 {[%clk 0:01:32]} 26. Rd1 {[%clk 0:00:01]}  Kh7 {[%clk 0:01:22]} 27. g3 {[%clk 0:00:01]}  Bd6 {[%clk 0:01:19]} 28. Kg2 {[%clk 0:00:02]}  Qa5 {[%clk 0:01:16]} 29. Rd4 {[%clk 0:00:02]}  Qxa2 {[%clk 0:01:14]} 30. Rh4 {[%clk 0:00:01]}  Kh6 {[%clk 0:01:13]} 0-1


[Site "https://www.chess.com"]

[Event "Titled Tuesday Blitz November 15 Early 2022"]
[White "Rios Escobar, Adan"]
[Black "Sariego Figueredo, Wilfredo"]
[WhiteFideId "3403645"]
[BlackFideId "3500080"]
[WhiteElo "2343"]
[BlackElo "2309"]
[Result "1-0"]
[Round "11"]
[TimeControl "180+1"]
[Date "2022.11.16"]
[WhiteClock "0:00:06"]
[BlackClock "0:00:02"]

1. d4 {[%clk 0:02:55]}  d5 {[%clk 0:02:59]} 2. c4 {[%clk 0:02:54]}  c6 {[%clk 0:02:59]} 3. g3 {[%clk 0:02:54]}  Nf6 {[%clk 0:02:54]} 4. Nf3 {[%clk 0:02:54]}  a6 {[%clk 0:02:54]} 5. Bg2 {[%clk 0:02:49]}  dxc4 {[%clk 0:02:51]} 6. O-O {[%clk 0:02:48]}  e6 {[%clk 0:02:44]} 7. Ne5 {[%clk 0:02:37]}  Bd6 {[%clk 0:02:37]} 8. Nxc4 {[%clk 0:02:34]}  Bc7 {[%clk 0:02:35]} 9. Nc3 {[%clk 0:02:31]}  O-O {[%clk 0:02:33]} 10. Bg5 {[%clk 0:02:30]}  Nbd7 {[%clk 0:02:29]} 11. Rc1 {[%clk 0:01:56]}  h6 {[%clk 0:02:25]} 12. Bf4 {[%clk 0:01:54]}  Bxf4 {[%clk 0:02:24]} 13. gxf4 {[%clk 0:01:55]}  Nd5 {[%clk 0:02:23]} 14. e3 {[%clk 0:01:51]}  N7f6 {[%clk 0:02:04]} 15. Ne5 {[%clk 0:01:48]}  Nxc3 {[%clk 0:02:00]} 16. bxc3 {[%clk 0:01:47]}  Nd7 {[%clk 0:01:54]} 17. c4 {[%clk 0:01:43]}  Nxe5 {[%clk 0:01:54]} 18. fxe5 {[%clk 0:01:44]}  Rb8 {[%clk 0:01:47]} 19. c5 {[%clk 0:01:44]}  Bd7 {[%clk 0:01:27]} 20. Qa4 {[%clk 0:01:35]}  f6 {[%clk 0:01:24]} 21. exf6 {[%clk 0:01:27]}  Qxf6 {[%clk 0:01:16]} 22. Rb1 {[%clk 0:01:27]}  e5 {[%clk 0:01:12]} 23. d5 {[%clk 0:01:20]}  Bf5 {[%clk 0:01:10]} 24. Rb4 {[%clk 0:01:14]}  Qg5 {[%clk 0:01:00]} 25. Kh1 {[%clk 0:00:40]}  cxd5 {[%clk 0:00:41]} 26. Bxd5+ {[%clk 0:00:38]}  Kh8 {[%clk 0:00:41]} 27. Rg1 {[%clk 0:00:32]}  Qe7 {[%clk 0:00:28]} 28. Rxb7 {[%clk 0:00:22]}  Rxb7 {[%clk 0:00:26]} 29. Bxb7 {[%clk 0:00:22]}  Qxb7+ {[%clk 0:00:26]} 30. c6 {[%clk 0:00:20]}  Qc7 {[%clk 0:00:20]} 31. f3 {[%clk 0:00:15]}  Bc8 {[%clk 0:00:17]} 32. Kg2 {[%clk 0:00:13]}  Rf6 {[%clk 0:00:14]} 33. Rc1 {[%clk 0:00:12]}  Rg6+ {[%clk 0:00:12]} 34. Kf2 {[%clk 0:00:12]}  e4 {[%clk 0:00:11]} 35. f4 {[%clk 0:00:12]}  Bh3 {[%clk 0:00:10]} 36. Qxe4 {[%clk 0:00:12]}  Rg2+ {[%clk 0:00:09]} 37. Kf3 {[%clk 0:00:12]}  Rxh2 {[%clk 0:00:07]} 38. Qe8+ {[%clk 0:00:12]}  Kh7 {[%clk 0:00:07]} 39. Qe4+ {[%clk 0:00:12]}  g6 {[%clk 0:00:07]} 40. Kg3 {[%clk 0:00:11]}  Rxa2 {[%clk 0:00:04]} 41. Kxh3 {[%clk 0:00:11]}  Qc8+ {[%clk 0:00:05]} 42. Kg3 {[%clk 0:00:10]}  h5 {[%clk 0:00:05]} 43. f5 {[%clk 0:00:06]}  gxf5 {[%clk 0:00:04]} 44. Qe7+ {[%clk 0:00:06]}  Kg6 {[%clk 0:00:04]} 45. c7 {[%clk 0:00:06]}  h4+ {[%clk 0:00:03]} 46. Kf4 {[%clk 0:00:06]}  Qh8 {[%clk 0:00:03]} 47. Rc6+ {[%clk 0:00:06]}  Kh5 {[%clk 0:00:02]} 48. Qg5# {[%clk 0:00:06]} 1-0


[Site "https://www.chess.com"]